[Event "Titled Tuesday Blitz August 31 2021"]
[White "Thing, Bibek"]
[Black "Tanenbaum, Zachary"]
[WhiteFideId "12303135"]
[BlackFideId "2060850"]
[WhiteElo "2000"]
[BlackElo "2165"]
[Result "0-1"]
[Round "10"]
[TimeControl "180+1"]
[Date "2021.08.31"]
[WhiteClock "0:00:05"]
[BlackClock "0:00:10"]

1. e4 {[%clk 0:02:43]}  e5 {[%clk 0:02:59]} 2. Nf3 {[%clk 0:02:40]}  Nc6 {[%clk 0:02:59]} 3. Bc4 {[%clk 0:02:39]}  Nf6 {[%clk 0:02:59]} 4. d3 {[%clk 0:02:39]}  Be7 {[%clk 0:03:00]} 5. a4 {[%clk 0:02:38]}  O-O {[%clk 0:03:00]} 6. a5 {[%clk 0:02:39]}  a6 {[%clk 0:02:59]} 7. O-O {[%clk 0:02:38]}  d6 {[%clk 0:02:59]} 8. c3 {[%clk 0:02:35]}  Be6 {[%clk 0:02:58]} 9. Nbd2 {[%clk 0:02:32]}  h6 {[%clk 0:02:56]} 10. Re1 {[%clk 0:02:31]}  Qd7 {[%clk 0:02:55]} 11. Bb3 {[%clk 0:02:30]}  Bxb3 {[%clk 0:02:53]} 12. Qxb3 {[%clk 0:02:31]}  Nh5 {[%clk 0:02:52]} 13. Nc4 {[%clk 0:02:24]}  Kh8 {[%clk 0:02:47]} 14. Ne3 {[%clk 0:02:20]}  Nf4 {[%clk 0:02:46]} 15. Qc2 {[%clk 0:02:14]}  g6 {[%clk 0:02:44]} 16. Nd5 {[%clk 0:02:09]}  g5 {[%clk 0:02:19]} 17. Ne3 {[%clk 0:02:08]}  g4 {[%clk 0:02:19]} 18. Nd2 {[%clk 0:02:02]}  Bg5 {[%clk 0:02:13]} 19. Nf5 {[%clk 0:02:00]}  Ne7 {[%clk 0:02:13]} 20. Nxe7 {[%clk 0:01:46]}  Qxe7 {[%clk 0:02:14]} 21. Nf1 {[%clk 0:01:45]}  f5 {[%clk 0:02:12]} 22. exf5 {[%clk 0:01:45]}  Rxf5 {[%clk 0:02:12]} 23. Ne3 {[%clk 0:01:45]}  Rff8 {[%clk 0:02:03]} 24. Nxg4 {[%clk 0:01:45]}  Ne6 {[%clk 0:01:21]} 25. Ra4 {[%clk 0:01:10]}  Rg8 {[%clk 0:01:18]} 26. Nxh6 {[%clk 0:01:02]}  Bxh6 {[%clk 0:00:57]} 27. Bxh6 {[%clk 0:01:03]}  Nc5 {[%clk 0:00:57]} 28. Rb4 {[%clk 0:00:50]}  Qh7 {[%clk 0:00:35]} 29. Be3 {[%clk 0:00:49]}  Nxd3 {[%clk 0:00:34]} 30. Rh4 {[%clk 0:00:38]}  Rxg2+ {[%clk 0:00:21]} 31. Kf1 {[%clk 0:00:27]}  Qxh4 {[%clk 0:00:21]} 32. Qxd3 {[%clk 0:00:27]}  Rag8 {[%clk 0:00:20]} 33. Ke2 {[%clk 0:00:24]}  Rf8 {[%clk 0:00:15]} 34. Rf1 {[%clk 0:00:24]}  Qg4+ {[%clk 0:00:14]} 35. Ke1 {[%clk 0:00:23]}  Qf5 {[%clk 0:00:13]} 36. Qd5 {[%clk 0:00:22]}  Qb1+ {[%clk 0:00:12]} 37. Ke2 {[%clk 0:00:17]}  Qxb2+ {[%clk 0:00:12]} 38. Bd2 {[%clk 0:00:15]}  Qb5+ {[%clk 0:00:11]} 39. Qxb5 {[%clk 0:00:15]}  axb5 {[%clk 0:00:12]} 40. h4 {[%clk 0:00:10]}  Rh2 {[%clk 0:00:11]} 41. Bg5 {[%clk 0:00:09]}  d5 {[%clk 0:00:10]} 42. Be3 {[%clk 0:00:06]}  Rxh4 {[%clk 0:00:09]} 43. Rb1 {[%clk 0:00:04]}  c6 {[%clk 0:00:09]} 44. Ra1 {[%clk 0:00:04]}  Ra4 {[%clk 0:00:09]} 45. Rh1+ {[%clk 0:00:04]}  Kg7 {[%clk 0:00:09]} 46. Bh6+ {[%clk 0:00:04]}  Kf7 {[%clk 0:00:09]} 47. Bxf8 {[%clk 0:00:05]}  Kxf8 {[%clk 0:00:10]} 48. Rh8+ {[%clk 0:00:05]}  Ke7 {[%clk 0:00:09]} 49. Rh7+ {[%clk 0:00:05]}  Kd6 {[%clk 0:00:10]} 50. Rxb7 {[%clk 0:00:06]}  Rxa5 {[%clk 0:00:11]} 51. Kd3 {[%clk 0:00:02]}  Ra3 {[%clk 0:00:10]} 52. Kc2 {[%clk 0:00:01]}  Ra2+ {[%clk 0:00:10]} 53. Kb3 {[%clk 0:00:01]}  Rxf2 {[%clk 0:00:10]} 54. Rb8 {[%clk 0:00:01]}  e4 {[%clk 0:00:11]} 55. Rd8+ {[%clk 0:00:02]}  Kc5 {[%clk 0:00:11]} 56. Re8 {[%clk 0:00:02]}  Rf3 {[%clk 0:00:11]} 57. Kc2 {[%clk 0:00:03]}  Kc4 {[%clk 0:00:11]} 58. Re6 {[%clk 0:00:02]}  c5 {[%clk 0:00:11]} 59. Kd2 {[%clk 0:00:03]}  Rxc3 {[%clk 0:00:10]} 60. Re8 {[%clk 0:00:03]}  Rd3+ {[%clk 0:00:11]} 61. Kc2 {[%clk 0:00:04]}  e3 {[%clk 0:00:11]} 62. Re7 {[%clk 0:00:03]}  d4 {[%clk 0:00:11]} 63. Kb2 {[%clk 0:00:04]}  Rd2+ {[%clk 0:00:11]} 64. Kc1 {[%clk 0:00:04]}  Kc3 {[%clk 0:00:11]} 65. Rc7 {[%clk 0:00:04]}  c4 {[%clk 0:00:11]} 66. Kb1 {[%clk 0:00:04]}  e2 {[%clk 0:00:10]} 67. Re7 {[%clk 0:00:04]}  Rd1+ {[%clk 0:00:10]} 68. Ka2 {[%clk 0:00:04]}  e1=Q {[%clk 0:00:11]} 69. Re2 {[%clk 0:00:04]}  Qxe2+ {[%clk 0:00:10]} 70. Ka3 {[%clk 0:00:05]}  Ra1# {[%clk 0:00:10]} 0-1


[Site "https://www.chess.com"]

[Event "Titled Tuesday Blitz August 31 2021"]
[White "Van der Werf, Mark"]
[Black "Quirke, Jeffrey"]
[WhiteFideId "1000470"]
[BlackFideId "2013029"]
[WhiteElo "2398"]
[BlackElo "2325"]
[Result "1-0"]
[Round "10"]
[TimeControl "180+1"]
[Date "2021.08.31"]
[WhiteClock "0:00:49"]
[BlackClock "0:00:05"]

1. e4 {[%clk 0:02:57]}  c6 {[%clk 0:02:59]} 2. d4 {[%clk 0:02:56]}  d5 {[%clk 0:03:00]} 3. exd5 {[%clk 0:02:56]}  cxd5 {[%clk 0:03:00]} 4. Bd3 {[%clk 0:02:57]}  Nc6 {[%clk 0:03:00]} 5. c3 {[%clk 0:02:56]}  Qc7 {[%clk 0:03:00]} 6. h3 {[%clk 0:02:50]}  g6 {[%clk 0:02:59]} 7. Nf3 {[%clk 0:02:50]}  Bf5 {[%clk 0:02:59]} 8. Be2 {[%clk 0:02:46]}  Nf6 {[%clk 0:02:58]} 9. O-O {[%clk 0:02:46]}  Bg7 {[%clk 0:02:56]} 10. Re1 {[%clk 0:02:45]}  O-O {[%clk 0:02:55]} 11. Nbd2 {[%clk 0:02:45]}  Rfe8 {[%clk 0:02:47]} 12. Nf1 {[%clk 0:02:43]}  Rad8 {[%clk 0:02:36]} 13. Ng3 {[%clk 0:02:42]}  Bc8 {[%clk 0:02:34]} 14. Bb5 {[%clk 0:02:39]}  a6 {[%clk 0:02:31]} 15. Bxc6 {[%clk 0:02:39]}  bxc6 {[%clk 0:02:31]} 16. Ne5 {[%clk 0:02:30]}  Nd7 {[%clk 0:02:27]} 17. Nxd7 {[%clk 0:02:18]}  Bxd7 {[%clk 0:02:21]} 18. Qf3 {[%clk 0:02:17]}  e5 {[%clk 0:02:16]} 19. dxe5 {[%clk 0:02:16]}  Bxe5 {[%clk 0:02:16]} 20. Bg5 {[%clk 0:02:02]}  Rb8 {[%clk 0:02:10]} 21. Re2 {[%clk 0:01:55]}  Be6 {[%clk 0:02:08]} 22. Rae1 {[%clk 0:01:51]}  Bg7 {[%clk 0:02:08]} 23. Bf6 {[%clk 0:01:41]}  c5 {[%clk 0:02:01]} 24. h4 {[%clk 0:01:37]}  h5 {[%clk 0:01:57]} 25. Bxg7 {[%clk 0:01:32]}  Kxg7 {[%clk 0:01:57]} 26. Nxh5+ {[%clk 0:01:29]}  gxh5 {[%clk 0:01:55]} 27. Re5 {[%clk 0:01:21]}  Bg4 {[%clk 0:01:45]} 28. Qf4 {[%clk 0:01:15]}  Rxe5 {[%clk 0:01:40]} 29. Rxe5 {[%clk 0:01:14]}  Qb7 {[%clk 0:00:40]} 30. f3 {[%clk 0:01:11]}  Be6 {[%clk 0:00:31]} 31. Rxh5 {[%clk 0:01:11]}  Kf8 {[%clk 0:00:30]} 32. Qd6+ {[%clk 0:01:07]}  Kg7 {[%clk 0:00:28]} 33. Rg5+ {[%clk 0:01:03]}  Kh7 {[%clk 0:00:25]} 34. Qe5 {[%clk 0:00:59]}  f6 {[%clk 0:00:14]} 35. Qxf6 {[%clk 0:00:57]}  Qf7 {[%clk 0:00:11]} 36. Qe5 {[%clk 0:00:51]}  Rxb2 {[%clk 0:00:05]} 37. Rh5+ {[%clk 0:00:49]} 1-0


[Site "https://www.chess.com"]

[Event "Titled Tuesday Blitz August 31 2021"]
[White "Visakh N R"]
[Black "Jaracz, Pawel"]
[WhiteFideId "25012223"]
[BlackFideId "1102222"]
[WhiteElo "2428"]
[BlackElo "2495"]
[Result "1-0"]
[Round "10"]
[TimeControl "180+1"]
[Date "2021.08.31"]
[WhiteClock "0:02:03"]
[BlackClock "0:01:37"]

1. c4 {[%clk 0:03:00]}  e6 {[%clk 0:02:58]} 2. Nc3 {[%clk 0:02:57]}  d5 {[%clk 0:02:58]} 3. e3 {[%clk 0:02:57]}  Nf6 {[%clk 0:02:58]} 4. Nf3 {[%clk 0:02:57]}  c6 {[%clk 0:02:57]} 5. b3 {[%clk 0:02:57]}  Bd6 {[%clk 0:02:57]} 6. Bb2 {[%clk 0:02:57]}  O-O {[%clk 0:02:58]} 7. Be2 {[%clk 0:02:57]}  e5 {[%clk 0:02:58]} 8. cxd5 {[%clk 0:02:53]}  cxd5 {[%clk 0:02:58]} 9. Nb5 {[%clk 0:02:53]}  Nc6 {[%clk 0:02:58]} 10. Nxd6 {[%clk 0:02:53]}  Qxd6 {[%clk 0:02:59]} 11. O-O {[%clk 0:02:53]}  d4 {[%clk 0:02:57]} 12. exd4 {[%clk 0:02:52]}  exd4 {[%clk 0:02:57]} 13. Bb5 {[%clk 0:02:46]}  Bg4 {[%clk 0:02:50]} 14. h3 {[%clk 0:02:46]}  Bh5 {[%clk 0:02:48]} 15. g4 {[%clk 0:02:44]}  Bg6 {[%clk 0:02:40]} 16. Bxc6 {[%clk 0:02:37]}  bxc6 {[%clk 0:02:40]} 17. Bxd4 {[%clk 0:02:31]}  Ne4 {[%clk 0:02:36]} 18. Be3 {[%clk 0:02:26]}  h5 {[%clk 0:02:29]} 19. Nh4 {[%clk 0:02:24]}  hxg4 {[%clk 0:02:07]} 20. Nxg6 {[%clk 0:02:21]}  fxg6 {[%clk 0:02:04]} 21. Qxg4 {[%clk 0:02:21]}  Rae8 {[%clk 0:02:04]} 22. Rac1 {[%clk 0:02:19]}  Rf5 {[%clk 0:02:02]} 23. d3 {[%clk 0:02:12]}  Nf6 {[%clk 0:01:55]} 24. Qxg6 {[%clk 0:02:09]}  Rf3 {[%clk 0:01:47]} 25. Kg2 {[%clk 0:02:03]}  Qd5 {[%clk 0:01:37]} 26. Rc5 {[%clk 0:02:03]} 1-0


[Site "https://www.chess.com"]

[Event "Titled Tuesday Blitz August 31 2021"]
[White "Weetik, Vjacheslav"]
[Black "Gabrielian, Artur"]
[WhiteFideId "4153472"]
[BlackFideId "4131002"]
[WhiteElo "2469"]
[BlackElo "2513"]
[Result "0-1"]
[Round "10"]
[TimeControl "180+1"]
[Date "2021.08.31"]
[WhiteClock "0:00:10"]
[BlackClock "0:00:30"]

1. d4 {[%clk 0:03:00]}  Nf6 {[%clk 0:02:59]} 2. Bf4 {[%clk 0:02:59]}  e6 {[%clk 0:02:58]} 3. e3 {[%clk 0:02:59]}  d5 {[%clk 0:02:58]} 4. Nd2 {[%clk 0:02:59]}  c5 {[%clk 0:02:58]} 5. c3 {[%clk 0:03:00]}  Bd6 {[%clk 0:02:57]} 6. Bxd6 {[%clk 0:02:59]}  Qxd6 {[%clk 0:02:57]} 7. Bd3 {[%clk 0:03:00]}  O-O {[%clk 0:02:56]} 8. Rc1 {[%clk 0:02:59]}  b6 {[%clk 0:02:55]} 9. Ngf3 {[%clk 0:02:45]}  Ba6 {[%clk 0:02:52]} 10. Bxa6 {[%clk 0:02:45]}  Nxa6 {[%clk 0:02:52]} 11. O-O {[%clk 0:02:45]}  Nb8 {[%clk 0:02:49]} 12. Qe2 {[%clk 0:02:41]}  Nbd7 {[%clk 0:02:47]} 13. Rcd1 {[%clk 0:02:35]}  e5 {[%clk 0:02:46]} 14. dxe5 {[%clk 0:02:17]}  Nxe5 {[%clk 0:02:45]} 15. Nxe5 {[%clk 0:02:18]}  Qxe5 {[%clk 0:02:46]} 16. Nf3 {[%clk 0:02:19]}  Qe6 {[%clk 0:02:43]} 17. Qa6 {[%clk 0:02:18]}  h6 {[%clk 0:02:41]} 18. h3 {[%clk 0:02:18]}  Rfd8 {[%clk 0:02:36]} 19. Rd3 {[%clk 0:02:17]}  Rd7 {[%clk 0:02:35]} 20. Rfd1 {[%clk 0:02:16]}  Rad8 {[%clk 0:02:35]} 21. a4 {[%clk 0:02:17]}  Ne4 {[%clk 0:02:35]} 22. c4 {[%clk 0:01:51]}  Kh7 {[%clk 0:02:24]} 23. Rxd5 {[%clk 0:01:35]}  Rxd5 {[%clk 0:02:24]} 24. cxd5 {[%clk 0:01:35]}  Rxd5 {[%clk 0:02:23]} 25. Rxd5 {[%clk 0:01:35]}  Qxd5 {[%clk 0:02:23]} 26. Qxa7 {[%clk 0:01:31]}  Qd1+ {[%clk 0:02:16]} 27. Kh2 {[%clk 0:01:31]}  Qd6+ {[%clk 0:02:16]} 28. Kg1 {[%clk 0:01:24]}  Qd1+ {[%clk 0:01:36]} 29. Kh2 {[%clk 0:01:24]}  Nxf2 {[%clk 0:01:33]} 30. Qxf7 {[%clk 0:01:15]}  Qh1+ {[%clk 0:01:31]} 31. Kg3 {[%clk 0:01:15]}  Ne4+ {[%clk 0:01:32]} 32. Kf4 {[%clk 0:01:14]}  Nf6 {[%clk 0:01:32]} 33. Qe6 {[%clk 0:00:21]}  Qxg2 {[%clk 0:01:16]} 34. Qf5+ {[%clk 0:00:21]}  Kh8 {[%clk 0:01:16]} 35. Qc8+ {[%clk 0:00:20]}  Ng8 {[%clk 0:01:15]} 36. Ne5 {[%clk 0:00:19]}  g5+ {[%clk 0:01:01]} 37. Kf5 {[%clk 0:00:15]}  Qxh3+ {[%clk 0:00:57]} 38. Ng4 {[%clk 0:00:16]}  h5 {[%clk 0:00:52]} 39. Kxg5 {[%clk 0:00:15]}  hxg4 {[%clk 0:00:47]} 40. Qxg4 {[%clk 0:00:15]}  Qh6+ {[%clk 0:00:47]} 41. Kf5 {[%clk 0:00:15]}  Qf6+ {[%clk 0:00:42]} 42. Ke4 {[%clk 0:00:15]}  Qxb2 {[%clk 0:00:38]} 43. Qh4+ {[%clk 0:00:12]}  Kg7 {[%clk 0:00:38]} 44. Qg5+ {[%clk 0:00:13]}  Kf7 {[%clk 0:00:39]} 45. Qd5+ {[%clk 0:00:13]}  Kf8 {[%clk 0:00:37]} 46. Qd8+ {[%clk 0:00:13]}  Kg7 {[%clk 0:00:36]} 47. Qg5+ {[%clk 0:00:13]}  Kh7 {[%clk 0:00:37]} 48. Qh5+ {[%clk 0:00:12]}  Nh6 {[%clk 0:00:37]} 49. Qd5 {[%clk 0:00:10]}  Qg2+ {[%clk 0:00:36]} 50. Ke5 {[%clk 0:00:10]}  Ng4+ {[%clk 0:00:32]} 51. Kd6 {[%clk 0:00:10]}  Qxd5+ {[%clk 0:00:31]} 52. Kxd5 {[%clk 0:00:11]}  Nxe3+ {[%clk 0:00:32]} 53. Ke4 {[%clk 0:00:10]}  Nc4 {[%clk 0:00:30]} 0-1


[Site "https://www.chess.com"]

[Event "Titled Tuesday Blitz August 31 2021"]
[White "Xiong, Jeffery"]
[Black "Le, Tuan Minh"]
[WhiteFideId "2047640"]
[BlackFideId "12401153"]
[WhiteElo "2724"]
[BlackElo "2450"]
[Result "0-1"]
[Round "10"]
[TimeControl "180+1"]
[Date "2021.08.31"]
[WhiteClock "0:00:04"]
[BlackClock "0:00:02"]

1. c4 {[%clk 0:03:00]}  c6 {[%clk 0:03:00]} 2. d4 {[%clk 0:03:00]}  d5 {[%clk 0:03:00]} 3. Nf3 {[%clk 0:03:01]}  Nf6 {[%clk 0:03:01]} 4. cxd5 {[%clk 0:03:02]}  cxd5 {[%clk 0:03:01]} 5. Nc3 {[%clk 0:03:03]}  Nc6 {[%clk 0:03:02]} 6. Bf4 {[%clk 0:03:04]}  a6 {[%clk 0:03:02]} 7. Rc1 {[%clk 0:03:04]}  Qb6 {[%clk 0:02:59]} 8. Na4 {[%clk 0:03:02]}  Qa5+ {[%clk 0:02:54]} 9. Bd2 {[%clk 0:03:02]}  Qd8 {[%clk 0:02:55]} 10. e3 {[%clk 0:02:56]}  Ne4 {[%clk 0:02:51]} 11. Be2 {[%clk 0:02:56]}  e6 {[%clk 0:02:47]} 12. O-O {[%clk 0:02:56]}  Nxd2 {[%clk 0:02:47]} 13. Nxd2 {[%clk 0:02:56]}  Bd6 {[%clk 0:02:47]} 14. a3 {[%clk 0:02:56]}  O-O {[%clk 0:02:46]} 15. b4 {[%clk 0:02:56]}  Ne7 {[%clk 0:02:27]} 16. Qb3 {[%clk 0:02:52]}  b6 {[%clk 0:02:14]} 17. Rc2 {[%clk 0:02:52]}  Bd7 {[%clk 0:02:08]} 18. Rfc1 {[%clk 0:02:52]}  Qb8 {[%clk 0:02:06]} 19. Nf3 {[%clk 0:02:51]}  Rc8 {[%clk 0:02:05]} 20. Rxc8+ {[%clk 0:02:41]}  Nxc8 {[%clk 0:02:03]} 21. Bd3 {[%clk 0:02:42]}  g6 {[%clk 0:01:53]} 22. h4 {[%clk 0:02:42]}  Ra7 {[%clk 0:01:43]} 23. h5 {[%clk 0:02:36]}  Rc7 {[%clk 0:01:33]} 24. Nc3 {[%clk 0:02:25]}  b5 {[%clk 0:01:32]} 25. Re1 {[%clk 0:02:20]}  Nb6 {[%clk 0:01:31]} 26. e4 {[%clk 0:02:20]}  Qc8 {[%clk 0:01:31]} 27. Ne2 {[%clk 0:02:16]}  dxe4 {[%clk 0:01:28]} 28. Bxe4 {[%clk 0:02:17]}  Bc6 {[%clk 0:01:27]} 29. Ng5 {[%clk 0:02:05]}  Qd8 {[%clk 0:01:03]} 30. hxg6 {[%clk 0:01:06]}  hxg6 {[%clk 0:00:37]} 31. Nxf7 {[%clk 0:00:57]}  Rxf7 {[%clk 0:00:24]} 32. Bxc6 {[%clk 0:00:56]}  Nc4 {[%clk 0:00:24]} 33. Qd3 {[%clk 0:00:18]}  Qf6 {[%clk 0:00:22]} 34. Bf3 {[%clk 0:00:18]}  Rh7 {[%clk 0:00:14]} 35. Nc3 {[%clk 0:00:12]}  Bh2+ {[%clk 0:00:13]} 36. Kf1 {[%clk 0:00:12]}  Bf4 {[%clk 0:00:12]} 37. Ne4 {[%clk 0:00:13]}  Qf5 {[%clk 0:00:11]} 38. g3 {[%clk 0:00:13]}  Bd2 {[%clk 0:00:07]} 39. Rb1 {[%clk 0:00:05]}  Rf7 {[%clk 0:00:07]} 40. Ke2 {[%clk 0:00:05]}  Bh6 {[%clk 0:00:07]} 41. Rh1 {[%clk 0:00:05]}  Bg7 {[%clk 0:00:07]} 42. Nc5 {[%clk 0:00:03]}  Qxd3+ {[%clk 0:00:03]} 43. Nxd3 {[%clk 0:00:04]}  Bxd4 {[%clk 0:00:04]} 44. Bg4 {[%clk 0:00:04]}  Kg7 {[%clk 0:00:04]} 45. Nf4 {[%clk 0:00:03]}  Re7 {[%clk 0:00:02]} 46. Nxe6+ {[%clk 0:00:04]}  Kf6 {[%clk 0:00:03]} 47. Kd3 {[%clk 0:00:04]}  Bb6 {[%clk 0:00:03]} 48. f4 {[%clk 0:00:03]}  Nxa3 {[%clk 0:00:01]} 49. Rh6 {[%clk 0:00:03]}  Nc4 {[%clk 0:00:02]} 50. Ke4 {[%clk 0:00:02]}  Nd6+ {[%clk 0:00:01]} 51. Kd5 {[%clk 0:00:03]}  Nf7 {[%clk 0:00:02]} 52. Rh7 {[%clk 0:00:04]}  Rd7+ {[%clk 0:00:02]} 53. Kc6 {[%clk 0:00:04]}  Rd6+ {[%clk 0:00:02]} 54. Kb7 {[%clk 0:00:04]}  Bf2 {[%clk 0:00:02]} 55. Nc7 {[%clk 0:00:04]}  Rb6+ {[%clk 0:00:02]} 56. Kc8 {[%clk 0:00:03]}  Nd6+ {[%clk 0:00:03]} 57. Kd7 {[%clk 0:00:04]}  g5 {[%clk 0:00:02]} 58. Nd5+ {[%clk 0:00:04]}  Kg6 {[%clk 0:00:02]} 0-1


[Site "https://www.chess.com"]

[Event "Titled Tuesday Blitz August 31 2021"]
[White "Yordanov, Nikolay Plamenov"]
[Black "Yeletsky, Ivan"]
[WhiteFideId "2907445"]
[BlackFideId "24180327"]
[WhiteElo "2248"]
[BlackElo "2344"]
[Result "0-1"]
[Round "10"]
[TimeControl "180+1"]
[Date "2021.08.31"]
[WhiteClock "0:00:10"]
[BlackClock "0:00:10"]

1. d4 {[%clk 0:03:00]}  Nf6 {[%clk 0:02:30]} 2. Bf4 {[%clk 0:02:59]}  d6 {[%clk 0:02:30]} 3. e3 {[%clk 0:02:59]}  c6 {[%clk 0:02:30]} 4. h3 {[%clk 0:02:58]}  Qa5+ {[%clk 0:02:25]} 5. Nd2 {[%clk 0:02:56]}  e5 {[%clk 0:02:24]} 6. dxe5 {[%clk 0:02:54]}  dxe5 {[%clk 0:02:24]} 7. Bh2 {[%clk 0:02:54]}  Be6 {[%clk 0:02:24]} 8. Nf3 {[%clk 0:02:53]}  Nbd7 {[%clk 0:02:24]} 9. Be2 {[%clk 0:02:51]}  Bd6 {[%clk 0:02:17]} 10. O-O {[%clk 0:02:50]}  O-O-O {[%clk 0:02:07]} 11. a3 {[%clk 0:02:42]}  Qc7 {[%clk 0:02:06]} 12. Bc4 {[%clk 0:02:34]}  e4 {[%clk 0:01:57]} 13. Bxd6 {[%clk 0:02:32]}  Qxd6 {[%clk 0:01:58]} 14. Bxe6 {[%clk 0:02:32]}  Qxe6 {[%clk 0:01:47]} 15. Nd4 {[%clk 0:02:27]}  Qd5 {[%clk 0:01:45]} 16. c4 {[%clk 0:02:21]}  Qe5 {[%clk 0:01:45]} 17. Qa4 {[%clk 0:02:18]}  Kb8 {[%clk 0:01:42]} 18. b4 {[%clk 0:02:12]}  h5 {[%clk 0:01:16]} 19. N2b3 {[%clk 0:02:11]}  Nb6 {[%clk 0:01:05]} 20. Qxc6 {[%clk 0:01:48]}  Qxd4 {[%clk 0:00:47]} 21. Nxd4 {[%clk 0:01:35]}  bxc6 {[%clk 0:00:48]} 22. Nxc6+ {[%clk 0:01:36]}  Kc7 {[%clk 0:00:48]} 23. Nxd8 {[%clk 0:01:36]}  Rxd8 {[%clk 0:00:48]} 24. Rfc1 {[%clk 0:01:33]}  Rd2 {[%clk 0:00:33]} 25. a4 {[%clk 0:01:33]}  Nbd7 {[%clk 0:00:26]} 26. a5 {[%clk 0:01:18]}  Ne5 {[%clk 0:00:25]} 27. b5 {[%clk 0:01:18]}  Nd3 {[%clk 0:00:23]} 28. Rc3 {[%clk 0:01:06]}  Nd7 {[%clk 0:00:19]} 29. b6+ {[%clk 0:00:59]}  axb6 {[%clk 0:00:20]} 30. axb6+ {[%clk 0:00:54]}  Nxb6 {[%clk 0:00:17]} 31. Ra7+ {[%clk 0:00:49]}  Kc6 {[%clk 0:00:17]} 32. Rxf7 {[%clk 0:00:49]}  g5 {[%clk 0:00:15]} 33. Rg7 {[%clk 0:00:46]}  g4 {[%clk 0:00:10]} 34. hxg4 {[%clk 0:00:45]}  hxg4 {[%clk 0:00:11]} 35. Rg6+ {[%clk 0:00:44]}  Kc5 {[%clk 0:00:10]} 36. Rb3 {[%clk 0:00:22]}  Nxc4 {[%clk 0:00:10]} 37. Rg5+ {[%clk 0:00:20]}  Nce5 {[%clk 0:00:09]} 38. Rxd3 {[%clk 0:00:17]}  exd3 {[%clk 0:00:10]} 39. Rxe5+ {[%clk 0:00:17]}  Kc4 {[%clk 0:00:11]} 40. Kh2 {[%clk 0:00:14]}  Rxf2 {[%clk 0:00:10]} 41. Re4+ {[%clk 0:00:15]}  Kc3 {[%clk 0:00:10]} 42. Rxg4 {[%clk 0:00:15]}  d2 {[%clk 0:00:09]} 43. Rd4 {[%clk 0:00:15]}  Rf1 {[%clk 0:00:10]} 44. g4 {[%clk 0:00:13]}  d1=Q {[%clk 0:00:10]} 45. Rxd1 {[%clk 0:00:14]}  Rxd1 {[%clk 0:00:11]} 46. Kg3 {[%clk 0:00:14]}  Kc4 {[%clk 0:00:09]} 47. Kf4 {[%clk 0:00:14]}  Kd5 {[%clk 0:00:09]} 48. Kf5 {[%clk 0:00:12]}  Rf1+ {[%clk 0:00:09]} 49. Kg6 {[%clk 0:00:11]}  Ke6 {[%clk 0:00:10]} 50. e4 {[%clk 0:00:11]}  Rf4 {[%clk 0:00:09]} 51. g5 {[%clk 0:00:12]}  Rxe4 {[%clk 0:00:10]} 52. Kg7 {[%clk 0:00:11]}  Rg4 {[%clk 0:00:10]} 53. Kh6 {[%clk 0:00:10]}  Kf5 {[%clk 0:00:10]} 0-1


[Site "https://www.chess.com"]

[Event "Titled Tuesday Blitz August 31 2021"]
[White "Zhigalko, Sergei"]
[Black "Abdurakhmonov, Mukhammadali"]
[WhiteFideId "13502956"]
[BlackFideId "14207346"]
[WhiteElo "2662"]
[BlackElo "2266"]
[Result "0-1"]
[Round "10"]
[TimeControl "180+1"]
[Date "2021.08.31"]
[WhiteClock "0:00:01"]
[BlackClock "0:00:14"]

1. e4 {[%clk 0:03:00]}  e5 {[%clk 0:02:56]} 2. Nf3 {[%clk 0:03:01]}  Nc6 {[%clk 0:02:55]} 3. Bc4 {[%clk 0:03:01]}  Nf6 {[%clk 0:02:55]} 4. Ng5 {[%clk 0:02:59]}  d5 {[%clk 0:02:54]} 5. exd5 {[%clk 0:03:00]}  Na5 {[%clk 0:02:54]} 6. Bb5+ {[%clk 0:03:01]}  c6 {[%clk 0:02:54]} 7. dxc6 {[%clk 0:03:02]}  bxc6 {[%clk 0:02:55]} 8. Bd3 {[%clk 0:03:02]}  Nd5 {[%clk 0:02:53]} 9. h4 {[%clk 0:03:03]}  Nf4 {[%clk 0:02:31]} 10. Bf1 {[%clk 0:03:00]}  h6 {[%clk 0:02:31]} 11. Nf3 {[%clk 0:02:51]}  e4 {[%clk 0:02:19]} 12. d4 {[%clk 0:02:45]}  Ne6 {[%clk 0:02:06]} 13. Nfd2 {[%clk 0:02:26]}  Qxd4 {[%clk 0:02:05]} 14. c3 {[%clk 0:02:18]}  Qe5 {[%clk 0:01:43]} 15. Qe2 {[%clk 0:01:49]}  f5 {[%clk 0:01:34]} 16. Nc4 {[%clk 0:01:43]}  Nxc4 {[%clk 0:01:23]} 17. Qh5+ {[%clk 0:01:44]}  Kd8 {[%clk 0:01:15]} 18. Bxc4 {[%clk 0:01:44]}  Bd6 {[%clk 0:00:58]} 19. Be3 {[%clk 0:00:33]}  f4 {[%clk 0:00:43]} 20. Qxe5 {[%clk 0:00:34]}  Bxe5 {[%clk 0:00:44]} 21. Bd2 {[%clk 0:00:35]}  Nc5 {[%clk 0:00:38]} 22. Na3 {[%clk 0:00:33]}  Kc7 {[%clk 0:00:36]} 23. O-O-O {[%clk 0:00:33]}  Bf5 {[%clk 0:00:28]} 24. Rde1 {[%clk 0:00:31]}  Rad8 {[%clk 0:00:26]} 25. b4 {[%clk 0:00:31]}  Nd3+ {[%clk 0:00:25]} 26. Bxd3 {[%clk 0:00:32]}  Rxd3 {[%clk 0:00:26]} 27. Nc4 {[%clk 0:00:30]}  Rxc3+ {[%clk 0:00:22]} 28. Bxc3 {[%clk 0:00:25]}  Bxc3 {[%clk 0:00:23]} 29. Rd1 {[%clk 0:00:25]}  Bxb4 {[%clk 0:00:22]} 30. Rd4 {[%clk 0:00:21]}  Bc5 {[%clk 0:00:22]} 31. Rd2 {[%clk 0:00:21]}  e3 {[%clk 0:00:21]} 32. fxe3 {[%clk 0:00:22]}  fxe3 {[%clk 0:00:22]} 33. Re2 {[%clk 0:00:17]}  Rd8 {[%clk 0:00:23]} 34. Rxe3 {[%clk 0:00:10]}  Bxe3+ {[%clk 0:00:16]} 35. Nxe3 {[%clk 0:00:10]}  Be6 {[%clk 0:00:17]} 36. a3 {[%clk 0:00:06]}  Rd3 {[%clk 0:00:17]} 37. Nc2 {[%clk 0:00:06]}  Rg3 {[%clk 0:00:17]} 38. Re1 {[%clk 0:00:05]}  Bd5 {[%clk 0:00:17]} 39. Ne3 {[%clk 0:00:04]}  Bxg2 {[%clk 0:00:13]} 40. Nf5 {[%clk 0:00:03]}  Rxa3 {[%clk 0:00:14]} 41. Re7+ {[%clk 0:00:04]}  Kb6 {[%clk 0:00:14]} 42. Rxg7 {[%clk 0:00:05]}  Bd5 {[%clk 0:00:13]} 43. Nxh6 {[%clk 0:00:02]}  a5 {[%clk 0:00:13]} 44. Nf5 {[%clk 0:00:02]}  a4 {[%clk 0:00:13]} 45. h5 {[%clk 0:00:01]}  Ra1+ {[%clk 0:00:14]} 46. Kb2 {[%clk 0:00:01]}  Ra2+ {[%clk 0:00:14]} 47. Kb1 {[%clk 0:00:01]}  Rh2 {[%clk 0:00:14]} 48. Ng3 {[%clk 0:00:01]}  a3 {[%clk 0:00:14]} 49. h6 {[%clk 0:00:01]}  Rxh6 {[%clk 0:00:14]} 0-1


[Site "https://www.chess.com"]